Cogmind - Beta 13 @@@ ROGUE MODE // 2024.07.22 @ 01:39:04 Player: UberDoot Result: Core destroyed Performance ------------- Evolutions (3) 1500 Regions Visited (9) 1800 Robots Destroyed (86) 430 Value Destroyed (3057) 3057 Prototype IDs (31) 620 Alien Tech Used (0) 0 Bonus (648) 648 TOTAL SCORE: 8055 Bonus ------- Follower Combat Kills 21 Entered DSFs 500 Aligned with FarCom 300 Friendly Fire -173 Cogmind --------- Core Integrity 0/700 Matter 22/300 Energy 100/100 System Corruption 10% Temperature Critical (7672) Movement Core (1600) Ox31 Location -7/DSF Parts ------- > --- POWER (1) -------- Improved Ion Engine > --- PROPULSION (4) --- Light Treads Light Treads Improved Treads > --- UTILITY (6) ------ Advanced Heat Sink Huge Storage Unit Core Analyzer > --- WEAPON (2) ------- Heavy Particle Cannon > --- INVENTORY (25) --- Light Nuclear Core Light Nuclear Core Light Nuclear Core Light Nuclear Core VTOL Module Improved Flight Unit Improved Flight Unit Xenon Bombardment Thruster Xenon Bombardment Thruster Xenon Bombardment Thruster Small Storage Unit Medium Storage Unit Medium Battery (150) Compact Matter Pod (150) Improved Terrain Scanner Transport Network Coupler Layered Medium Armor Plating Layered Medium Armor Plating Hacking Suite Long-range Tractor Beam Latent Energy Streamer Autogun Autogun Mini Grenade Launcher Flail Peak State ------------ > --- POWER ------------ Improved Ion Engine > --- PROPULSION ------- Light Treads Light Treads Armored Wheel Armored Wheel > --- UTILITY ---------- Improved Heat Sink Advanced Heat Sink Cooling System Huge Storage Unit Core Analyzer Improved Light Armor Plating > --- WEAPON ----------- Heavy Laser Latent Energy Streamer > --- INVENTORY -------- Light Nuclear Core Light Nuclear Core Light Nuclear Core Light Nuclear Core Improved Treads VTOL Module Improved Flight Unit Improved Flight Unit Xenon Bombardment Thruster Xenon Bombardment Thruster Xenon Bombardment Thruster Small Storage Unit Medium Storage Unit Medium Battery Compact Matter Pod Improved Terrain Scanner Transport Network Coupler Hacking Suite Long-range Tractor Beam Heavy Particle Cannon Autogun Autogun Rocket Launcher Mini Grenade Launcher Flail [Rating: 46] Favorites ----------- Power Improved Ion Engine Engine Improved Ion Engine Propulsion Armored Wheel Treads Light Treads Leg Aluminum Leg Wheel Armored Wheel Flight Unit Improved Flight Unit Utility Huge Storage Unit Device Seismic Detector Storage Huge Storage Unit Processor Core Analyzer Protection Light Armor Plating Weapon Improved Assault Rifle Energy Gun Heavy EM Pulse Gun Energy Cannon Heavy Particle Cannon Ballistic Gun Improved Assault Rifle Ballistic Cannon Battle Cannon Launcher Mini Grenade Launcher Special Weapon Mining Laser Impact Weapon Flail Build | -11 -10 -10 -9 -9 -9 -8 -8 -7 -7 ------- Run | Yrd Mat Min Mat Min Exi Min Mat Fac DSF Slots Evolved 6 | . . . 2 . . . 2 2 . Power . | . . . . . . . . . . Propulsion 2 | . . . 1 . . . 1 . . Utility 4 | . . . 1 . . . 1 2 . Weapon . | . . . . . . . . . . Parts Attached 128 | 7 11 11 43 8 3 2 31 2 10 Power 13 | 1 2 2 5 1 . . 2 . . Engine 13 | 1 2 2 5 1 . . 2 . . Core . | . . . . . . . . . . Reactor . | . . . . . . . . . . Propulsion 40 | 2 3 . 21 1 . . 10 . 3 Treads 21 | 2 . . 10 1 . . 5 . 3 Leg 5 | . . . 5 . . . . . . Wheel 13 | . 3 . 5 . . . 5 . . Hover . | . . . . . . . . . . Flight 1 | . . . 1 . . . . . . Utility 20 | 2 1 . 6 2 . . 7 . 2 Device 9 | 1 . . 4 . . . 3 . 1 Storage 2 | 1 1 . . . . . . . . Processor 1 | . . . . . . . . . 1 Hackware . | . . . . . . . . . . Protection 8 | . . . 2 2 . . 4 . . Artifact . | . . . . . . . . . . Weapon 55 | 2 5 9 11 4 3 2 12 2 5 Energy Gun 16 | 1 3 4 4 . . 1 2 . 1 Energy Cannon 4 | . . . . . 1 . 1 . 2 Ballistic Gun 18 | 1 2 . 5 2 1 . 6 1 . Ballistic Cannon 2 | . . . . 1 . . 1 . . Launcher 9 | . . 3 1 1 . 1 2 . 1 Special Weapon 2 | . . 2 . . . . . . . Impact Weapon 4 | . . . 1 . 1 . . 1 1 Slashing Weapon . | . . . . . . . . . . Piercing Weapon . | . . . . . . . . . . Special Melee Weapon . | . . . . . . . . . . Unidentified Prototypes 2 | . . . 2 . . . . . . Corrupted Parts 1 | . . . . . . . . . 1 System Corruption 6 | . . . . . . . . . 6 Parts Lost 34 | . 1 . 10 3 . . 11 . 9 Power 3 | . . . 2 . . . 1 . . Propulsion 13 | . 1 . 3 1 . . 4 . 4 Utility 12 | . . . 2 2 . . 5 . 3 Weapon 6 | . . . 3 . . . 1 . 2 Highest Loss Streak 8 | . 1 . 5 2 . . 4 . 8 To Critical Strikes . | . . . . . . . . . . Average Slot Usage (%) 94 | . 97 100 95 99 84 100 96 84 71 Engine 10 | . 13 14 10 11 11 11 8 7 7 Treads 10 | . . . 13 9 11 11 16 15 15 Leg 1 | . . . 7 . . . . . . Wheel 19 | . 26 28 11 23 22 22 16 15 6 Device 10 | . 14 14 14 2 . . 14 15 12 Storage 10 | . 14 14 11 11 11 11 9 7 7 Protection 9 | . . . 4 19 22 22 11 7 2 Energy Gun 8 | . 18 26 8 . . 10 4 7 2 Ballistic Gun 6 | . 8 . 11 5 1 11 9 2 1 Ballistic Cannon 1 | . . . . 10 . . . . . Launcher 1 | . . 1 . 5 . . . . 1 Naked Turns . | . . . . . . . . . . Heaviest Build 108 | 12 90 91 98 99 103 99 104 99 108 Greatest Support 69 | 40 40 26 69 36 24 24 28 24 63 Greatest Overweight (x) 31 | . 8 3 9 4 4 4 8 4 31 Average Overweight (x) 3 | . 3 3 2 3 3 4 4 4 4 Largest Inventory Capacity 25 | 8 25 25 25 25 25 25 25 25 25 Average Capacity 24 | 7 24 25 25 25 25 25 25 25 25 Most Carried 25 | 8 25 25 25 25 25 25 25 25 25 Average Carried 23 | 4 17 24 24 24 24 24 24 25 24 Final Capacity 25 | 8 25 25 25 25 25 25 25 25 25 Final Carried 25 | 8 25 25 25 25 25 25 25 25 25 Class Distribution -------------------- 70% | Mutant 21% | Scavenger-Mutant 5% | Skirmisher Dominant Class ---------------- Mutant | -10/Materials Mutant | -10/Mines Mutant | -9/Materials Mutant | -9/Mines Mutant | -9/Exiles Mutant | -8/Mines Scavenger-Mutant | -8/Materials Scavenger-Mutant | -7/Factory Scavenger-Mutant | -7/DSF Resources | -11 -10 -10 -9 -9 -9 -8 -8 -7 -7 ----------- Run | Yrd Mat Min Mat Min Exi Min Mat Fac DSF Matter Collected 2848 | 256 236 199 684 567 39 100 654 . 113 Remotely . | . . . . . . . . . . Salvage Created 3375 | 61 300 151 1064 102 . 120 1087 . 490 Parts 198 | 4 24 14 60 2 . 5 68 . 21 Haulers Intercepted 6 | . 1 . 2 . . . 3 . . Recyclers Shooed . | . . . . . . . . . . Parts Field Recycled . | . . . . . . . . . . Retrieved Matter . | . . . . . . . . . . Parts Self-Destructed . | . . . . . . . . . . Prevented . | . . . . . . . . . . Kills | -11 -10 -10 -9 -9 -9 -8 -8 -7 -7 ------- Run | Yrd Mat Min Mat Min Exi Min Mat Fac DSF Combat Hostiles Destroyed 82 | . 5 6 18 19 . 3 21 . 10 Guns 37 | . 5 4 16 1 . 1 8 . 2 Cannons 11 | . . . . 4 . . 6 . 1 AOE 34 | . . 2 2 14 . 2 7 . 7 Classes Destroyed 15 | 2 3 1 2 2 . . 3 . 2 Worker 1 | . . . . . . . 1 . . Builder 1 | . . . . . . . 1 . . Tunneler 2 | 1 . . . . . 1 . . . Hauler 6 | . 1 . 2 . . . 3 . . Recycler 2 | 1 . . 1 . . . . . . Watcher 7 | . 2 . 3 . . . 2 . . Swarmer 4 | . . 4 . . . . . . . Grunt 43 | . 5 3 10 2 . 3 15 . 5 Duelist 2 | . . . 1 . . . . . 1 Sentry 11 | . . . 7 . . . 4 . . Demolisher 1 | . . . . 1 . . . . . Specialist 3 | . . . . . . . . . 3 Hunter 2 | . . . . . . . 2 . . Heavy 1 | . . . . . . . . . 1 Assembled 16 | . . . . 16 . . . . . Best Kill Streak 9 | 2 2 3 3 9 . 3 8 . 9 Combat Bots Only 9 | . 2 3 3 9 . 3 6 . 9 Max Kills in Single Turn 4 | 1 2 2 2 2 . 2 4 . 2 Gunslinging 1 | . 1 . 1 . . . . . . Exploded 4 | . . 2 1 2 . 2 4 . 2 Melee . | . . . . . . . . . . Uniques/NPCs Destroyed . | . . . . . . . . . . Combat | -11 -10 -10 -9 -9 -9 -8 -8 -7 -7 -------- Run | Yrd Mat Min Mat Min Exi Min Mat Fac DSF Hostile Shots Fired 389 | . 19 14 128 27 . 6 142 . 53 Missed 98 | . 4 2 40 6 . . 32 . 14 Damage Taken 5565 | . 204 111 1211 649 . 118 1780 . 1492 Core 1362 | . 84 10 143 113 . 17 256 . 739 Absorbed by Shields 146 | . . . 30 116 . . . . . Core Remaining (%) 61 | 100 . 62 . . . 31 53 . . Volleys Fired 275 | 5 22 17 80 39 . 6 83 . 23 Largest 2 | 2 2 2 2 2 . 2 2 . 2 Hottest 140 | 60 90 95 115 62 . 88 140 . 129 Shots Fired 474 | 10 44 26 146 45 . 8 152 . 43 Gun 356 | 10 44 22 144 5 . 4 106 . 21 Cannon 65 | . . . . 19 . . 39 . 7 Launcher 53 | . . 4 2 21 . 4 7 . 15 Special . | . . . . . . . . . . Kinetic 223 | 5 14 . 80 24 . 2 92 . 6 Thermal 155 | 5 14 12 50 . . 2 53 . 19 Explosive 53 | . . 4 2 21 . 4 7 . 15 Electromagnetic 43 | . 16 10 14 . . . . . 3 Robot Hit Streak 14 | 3 7 4 11 14 . 5 14 . 6 Robot Miss Streak 3 | 1 2 3 2 2 . 1 3 . 3 Penetration Max . | . . . . . . . . . . Secondary Targets 2 | . 1 . 1 . . . . . . Max Gunslinging Chain 1 | . 1 . 1 . . . . . . Shots Hit Robots 290 | 7 32 7 100 13 . 6 102 . 23 Core Hits 200 | 3 12 11 41 29 . 9 61 . 34 Critical Kills 1 | . 1 . . . . . . . . Critical Parts Destroyed . | . . . . . . . . . . Critical Strikes 5 | . 1 1 3 . . . . . . Burn 3 | . . 1 2 . . . . . . Destroy 1 | . 1 . . . . . . . . Corrupt 1 | . . . 1 . . . . . . Melee Attacks 11 | . . . 5 . . . . 5 1 Impact 11 | . . . 5 . . . . 5 1 Slashing . | . . . . . . . . . . Piercing . | . . . . . . . . . . Sneak Attacks . | . . . . . . . . . . Combat Hostiles . | . . . . . . . . . . Follow-up Attacks . | . . . . . . . . . . Damage Inflicted 8261 | 84 441 355 1519 1223 . 369 2600 . 1670 Guns 3363 | 84 441 106 1404 40 . 33 1029 . 226 Cannons 967 | . . . . 187 . . 750 . 30 Explosions 3931 | . . 249 115 996 . 336 821 . 1414 Melee . | . . . . . . . . . . Ramming . | . . . . . . . . . . Kinetic 2160 | 62 127 . 844 227 . 17 827 . 56 Thermal 1775 | 22 115 26 449 . . 16 952 . 195 Explosive 3721 | . . 249 115 996 . 336 821 . 1204 Electromagnetic 605 | . 199 80 111 . . . . . 215 Impact . | . . . . . . . . . . Slashing . | . . . . . . . . . . Piercing . | . . . . . . . . . . Highest Corruption 10 | . 2 2 1 1 1 1 . . 10 Average Corruption 1 | . 1 2 1 1 1 1 . . 6 Corruption Purged . | . . . . . . . . . . Corruption Blocked . | . . . . . . . . . . Effects 39 | . 2 10 3 7 4 3 . . 10 Message Errors 9 | . . 1 1 3 1 1 . . 2 Matter Fused 8 | . . 4 . 1 . 1 . . 2 Heat Flow Errors 6 | . 1 2 1 . 1 1 . . . Energy Discharges 5 | . 1 . . . 2 . . . 2 Data Loss (minor) 4 | . . 1 1 1 . . . . 1 Data Loss (major) 3 | . . 2 . 1 . . . . . Misfires 4 | . . . . 1 . . . . 3 Overload Shots . | . . . . . . . . . . Overflow Damage 78 | . . 18 . 14 . . 46 . . Projectiles 25 | . . . . 10 . . 15 . . Explosions 53 | . . 18 . 4 . . 31 . . Melee . | . . . . . . . . . . Knockbacks 1 | . . . . 1 . . . . . Impact . | . . . . . . . . . . Kinetic 1 | . . . . 1 . . . . . Secondary . | . . . . . . . . . . Self-Inflicted Damage 212 | . . . . 119 . 15 78 . . Shots 6 | . . . . 3 . 1 2 . . Rammed . | . . . . . . . . . . Targets Rammed . | . . . . . . . . . . Kicked . | . . . . . . . . . . Crushed . | . . . . . . . . . . Highest Temperature 7672 | . 218 203 313 36 126 182 264 . 7672 Average Temperature 666 | . 57 55 131 12 70 54 80 . 2679 Received Heat Transfer 1781 | . 117 15 558 20 . 54 891 . 126 Effects 72 | . . . 2 . . . . . 70 Shutdowns 6 | . . . . . . . . . 6 Energy Bleed 8 | . . . 1 . . . . . 7 Interference 1 | . . . . . . . . . 1 Matter Decay 12 | . . . . . . . . . 12 Short Circuit 6 | . . . . . . . . . 6 Damage (minor) 12 | . . . 1 . . . . . 11 Damage (major) 22 | . . . . . . . . . 22 Damage (core) 5 | . . . . . . . . . 5 Siege Activations . | . . . . . . . . . . Robots Corrupted . | . . . . . . . . . . Combat Hostiles . | . . . . . . . . . . Parts Fried 2 | . 1 . . . . . . . 1 Impact Corruptions . | . . . . . . . . . . Robots Melted . | . . . . . . . . . . Combat Hostiles . | . . . . . . . . . . Parts Melted 3 | . . . 3 . . . . . . Heat Transferred 3778 | 50 250 148 1369 . . 37 1554 . 370 Parts Sabotaged . | . . . . . . . . . . Parts Stolen . | . . . . . . . . . . Parts Stripped . | . . . . . . . . . . Power Chain Reactions . | . . . . . . . . . . Latent Energy Used 174 | . . . . . . . . . 174 LE Corruption 4 | . . . . . . . . . 4 Alert | -11 -10 -10 -9 -9 -9 -8 -8 -7 -7 ------- Run | Yrd Mat Min Mat Min Exi Min Mat Fac DSF Peak Influence 389 | 10 121 181 201 167 . 109 389 147 339 Initial 144 | . 6 24 5 54 . . 1 144 102 Average 111 | 3 65 77 68 61 . 81 233 145 254 Maximum Alert Level 1 | . . . 1 . . . 1 . 1 Low Security (%) 82 | 100 100 100 99 100 . 100 25 100 36 Level 1 17 | . . . . . . . 74 . 63 Level 2 . | . . . . . . . . . . Level 3 . | . . . . . . . . . . Level 4 . | . . . . . . . . . . Level 5 . | . . . . . . . . . . High Security . | . . . . . . . . . . Max Security . | . . . . . . . . . . Sterilizations 1 | . . . . . . . . . 1 Squads Dispatched 11 | . 1 . 1 . . . 7 . 2 Investigation 3 | . . . 1 . . . 2 . . Extermination . | . . . . . . . . . . Reinforcement 5 | . 1 . . . . . 2 . 2 Assault . | . . . . . . . . . . Garrison 3 | . . . . . . . 3 . . Intercept . | . . . . . . . . . . Searches Triggered . | . . . . . . . . . . Construction Impeded 1 | . . . . . . . 1 . . Haulers Reinforced . | . . . . . . . . . . Active Scanning Responses . | . . . . . . . . . . Cargo Convoy Interrupts . | . . . . . . . . . . Stealth | -11 -10 -10 -9 -9 -9 -8 -8 -7 -7 --------- Run | Yrd Mat Min Mat Min Exi Min Mat Fac DSF Distress Signals 4 | . . . 1 . . . 3 . . Communications Jammed . | . . . . . . . . . . Distress Signals . | . . . . . . . . . . Times Spotted 106 | . 10 7 24 19 . 3 30 . 13 Peak Tracking Total 5 | . 2 4 3 4 . 3 5 . 5 Tactical Retreats 2 | . . . 1 . . . . . 1 Traps | -11 -10 -10 -9 -9 -9 -8 -8 -7 -7 ------- Run | Yrd Mat Min Mat Min Exi Min Mat Fac DSF Traps Triggered 7 | . 5 . 1 . . . . . 1 Indirectly . | . . . . . . . . . . Trap Hack Attempts . | . . . . . . . . . . Triggered . | . . . . . . . . . . Disarmed . | . . . . . . . . . . Reprogrammed . | . . . . . . . . . . Reused . | . . . . . . . . . . Traps Extracted . | . . . . . . . . . . Installed . | . . . . . . . . . . Triggered . | . . . . . . . . . . Machines | -11 -10 -10 -9 -9 -9 -8 -8 -7 -7 ---------- Run | Yrd Mat Min Mat Min Exi Min Mat Fac DSF Machines Disabled 4 | . 1 1 . 1 . . 1 . . Max in Single Turn 1 | . 1 1 . 1 . . 1 . . Machines Repaired . | . . . . . . . . . . Machines Dismantled . | . . . . . . . . . . Machines Sabotaged . | . . . . . . . . . . Overloaded Fab Kills . | . . . . . . . . . . Hacking | -11 -10 -10 -9 -9 -9 -8 -8 -7 -7 --------- Run | Yrd Mat Min Mat Min Exi Min Mat Fac DSF Machines Accessed 18 | . 2 1 6 . 2 . 6 1 . Terminals 12 | . 2 1 5 . . . 3 1 . Fabricators . | . . . . . . . . . . Repair Stations 1 | . . . 1 . . . . . . Recycling Units 1 | . . . . . . . 1 . . Scanalyzers 1 | . . . . . . . 1 . . Garrison Access 1 | . . . . . . . 1 . . Total Hacks 49 | . 8 2 18 . 2 . 18 1 . Successful 22 | . 2 2 6 . 2 . 9 1 . Failed 26 | . 6 . 12 . . . 8 . . Catastrophic 4 | . . . 4 . . . . . . Database Lockouts 1 | . . . . . . . 1 . . Manual 22 | . 8 . 8 . 1 . 5 . . Terminals 33 | . 8 2 16 . . . 6 1 . Fabricators . | . . . . . . . . . . Repair Stations 2 | . . . 2 . . . . . . Recycling Units 3 | . . . . . . . 3 . . Scanalyzers 5 | . . . . . . . 5 . . Garrison Access 4 | . . . . . . . 4 . . Terminal Hacks 13 | . 1 2 5 . 2 . 2 1 . Record 1 | . . . . . 1 . . . . Part Schematic 1 | . . . . . . . 1 . . Robot Analysis 1 | . . . 1 . . . . . . Prototype ID Bank 3 | . . . 2 . . . 1 . . Open DSF 1 | . . . . . . . . 1 . Level Access Points 1 | . . 1 . . . . . . . Branch Access Points 2 | . 1 . 1 . . . . . . Hauler Manifests 1 | . . . 1 . . . . . . Zone Layout 1 | . . 1 . . . . . . . Derelict Proto ID Bank 1 | . . . . . 1 . . . . Fabricator Hacks . | . . . . . . . . . . Repair Station Hacks 1 | . . . 1 . . . . . . Scan Component 1 | . . . 1 . . . . . . Recycling Unit Hacks 1 | . . . . . . . 1 . . Retrieve Components 1 | . . . . . . . 1 . . Scanalyzer 4 | . . . . . . . 4 . . Insert Component 2 | . . . . . . . 2 . . Analyze 2 | . . . . . . . 2 . . Garrison Access Hacks . | . . . . . . . . . . Unauthorized Hacks 3 | . 1 . . . . . 2 . . Terminals 2 | . 1 . . . . . 1 . . Botnet 2 | . 1 . . . . . 1 . . Fabricators . | . . . . . . . . . . Repair Stations . | . . . . . . . . . . Recycling Units 1 | . . . . . . . 1 . . Tunnel 1 | . . . . . . . 1 . . Scanalyzers . | . . . . . . . . . . Garrison Access . | . . . . . . . . . . Data Cores Recovered . | . . . . . . . . . . Used . | . . . . . . . . . . Hacking Detections 14 | . 2 . 6 . . . 6 . . Full Trace Events 4 | . . . 2 . . . 2 . . Feedback Events . | . . . . . . . . . . Feedback Blocked . | . . . . . . . . . . Robot Schematics Acquired . | . . . . . . . . . . Robots Built . | . . . . . . . . . . Authchips . | . . . . . . . . . . Time . | . . . . . . . . . . Total Robot Build Rating . | . . . . . . . . . . Part Schematics Acquired 2 | . . . . . . . 2 . . Parts Built . | . . . . . . . . . . Authchips . | . . . . . . . . . . Time . | . . . . . . . . . . Total Part Build Rating . | . . . . . . . . . . Parts Repaired . | . . . . . . . . . . Time . | . . . . . . . . . . Parts Recycled . | . . . . . . . . . . Recycled Matter . | . . . . . . . . . . Retrieved Matter . | . . . . . . . . . . Retrieved Components . | . . . . . . . . . . Parts Scanalyzed 1 | . . . . . . . 1 . . Part Schematics Acquired 1 | . . . . . . . 1 . . Parts Damaged . | . . . . . . . . . . Bothacking | -11 -10 -10 -9 -9 -9 -8 -8 -7 -7 ------------ Run | Yrd Mat Min Mat Min Exi Min Mat Fac DSF Used RIF Installer . | . . . . . . . . . . Robots Hacked . | . . . . . . . . . . Non-combat . | . . . . . . . . . . Combat . | . . . . . . . . . . Robot Hacks Applied . | . . . . . . . . . . Relay Couplers Released . | . . . . . . . . . . Fabnet Peak Effective % . | . . . . . . . . . . Robots Rewired . | . . . . . . . . . . Allies Hacked . | . . . . . . . . . . Hacks Repelled . | . . . . . . . . . . Allies | -11 -10 -10 -9 -9 -9 -8 -8 -7 -7 -------- Run | Yrd Mat Min Mat Min Exi Min Mat Fac DSF Total Allies 3 | . . 3 . . . . . . . Largest Group 3 | . . 3 2 . . . . . . Highest-Rated Group 40 | . . 40 24 . . . . . . Highest-Rated Ally 16 | . . 16 16 . . . . . . Total Orders . | . . . . . . . . . . Ally Attacks 21 | . . 7 14 . . . . . . Total Damage 165 | . . 60 105 . . . . . . Kills 3 | . . 3 . . . . . . . Allies Corrupted . | . . . . . . . . . . Allies Melted . | . . . . . . . . . . Intel | -11 -10 -10 -9 -9 -9 -8 -8 -7 -7 ------- Run | Yrd Mat Min Mat Min Exi Min Mat Fac DSF Robot Analysis Total 1 | . . . 1 . . . . . . Derelict Logs Recovered 2 | . . 2 . . . . . . . Drone Launches . | . . . . . . . . . . Drone Recoveries . | . . . . . . . . . . Exploration | -11 -10 -10 -9 -9 -9 -8 -8 -7 -7 ------------- Run | Yrd Mat Min Mat Min Exi Min Mat Fac DSF Turns Passed 6976 | 124 518 949 1544 1095 487 535 1158 134 432 Spaces Moved 3699 | 62 275 618 643 687 348 340 527 75 124 Core 13 | 8 . . . . . . . . 5 Treads 261 | 54 2 . 163 . . . . . 42 Legs 59 | . . . 59 . . . . . . Wheels 3366 | . 273 618 421 687 348 340 527 75 77 Hover . | . . . . . . . . . . Flight . | . . . . . . . . . . Fastest Speed 50 | 50 90 135 120 120 135 150 140 150 150 Average Speed 154 | 145 137 135 180 144 137 150 152 150 276 Slowest Speed 1600 | 160 200 135 330 150 150 150 210 150 1600 Overloaded Moves . | . . . . . . . . . . Propulsion Burnouts . | . . . . . . . . . . Robots Hopped . | . . . . . . . . . . Cave-ins Triggered . | . . . . . . . . . . Exploration Rate (%) 55 | 6 44 98 52 100 63 70 33 2 87 Regions Visited 9 Branch Regions 4 Pre-discovered Areas 5 | . . 2 . 1 1 . 1 . . Known Exits Taken 4 | . 1 1 1 . . . . 1 . Unknown Exits Taken 5 | 1 . . . 1 1 1 1 . . Scrap Searched 5 | . . 1 . 3 . 1 . . . Spaces Dug 37 | . . 8 4 12 . . 9 3 1 Terrain Destroyed 396 | . . 36 22 185 . 32 51 3 67 Melee 8 | . . . 4 . . . . 3 1 Projectile 10 | . . . . 2 . . 7 . 1 AOE 378 | . . 36 18 183 . 32 44 . 65 Terrain Rammed . | . . . . . . . . . . Walls Destroyed . | . . . . . . . . . . Machines Disabled . | . . . . . . . . . . Actions | -11 -10 -10 -9 -9 -9 -8 -8 -7 -7 --------- Run | Yrd Mat Min Mat Min Exi Min Mat Fac DSF Total 4510 | 82 374 707 881 750 359 358 739 88 172 Wait 210 | 1 30 51 44 1 . 7 65 7 4 Move 3690 | 61 274 617 642 686 347 339 526 74 124 Hop . | . . . . . . . . . . Pick Up 103 | 8 25 4 28 9 3 2 17 . 7 Fast Attach 40 | 7 7 2 13 1 1 . 7 . 2 Attach 35 | . 1 1 14 4 1 . 10 . 4 Detach 9 | . 2 . 3 . 2 . 2 . . Swap 53 | . 3 8 16 3 1 2 14 2 4 Drop 84 | . 10 7 36 7 4 2 15 . 3 Fire 275 | 5 22 17 80 39 . 6 83 . 23 Melee 11 | . . . 5 . . . . 5 1 Ram . | . . . . . . . . . . Kick . | . . . . . . . . . . Crush . | . . . . . . . . . . Escape Stasis . | . . . . . . . . . . Rewire . | . . . . . . . . . . Trap . | . . . . . . . . . . Miscellaneous . | . . . . . . . . . . Route ------- -11/Scrapyard -10/Materials (discovered 3 exits: *Mat / *Min x2) -10/Mines (discovered 2 exits: *Mat x2) -9/Materials (discovered 2 exits: *Mat / *Min) -9/Mines (discovered 3 exits: *Mat x2 / *Exi) -9/Exiles (discovered 2 exits: [*Min x2]) -8/Mines -8/Materials -7/Factory -7/DSF (discovered 1 exit: [*Fac]) History --------- Turn | Location | Event 5 | -11/Scrapyard | Discovered new exit (range 16) 125 | -11/Scrapyard | Entered Materials 304 | -10/Materials | Build established: Mutant 432 | -10/Materials | Discovered new exit (range 5) 535 | -10/Materials | Identified exit to Mines 643 | -10/Materials | Entered Mines 808 | -10/Mines | Identified exit to Materials 854 | -10/Mines | Learned location of Zion (-6) 1131 | -10/Mines | Assisted by bots powering up and referring to "LRC-V3" 1215 | -10/Mines | Received a Rocket Launcher from a helpful Derelict 1216 | -10/Mines | Found a hidden stash of uninstalled traps 1592 | -10/Mines | Entered Materials 1592 | -9/Materials | Accompanied by 2 allies 1592 | -9/Materials | Evolved 2 slots: Propulsion x1, Utility x1 1781 | -9/Materials | Lost 3 parts (1p1n1w) 2002 | -9/Materials | Lost 5 parts (1p1n1u2w) 2262 | -9/Materials | Build established: Scavenger-Mutant 2665 | -9/Materials | Build established: Mutant 2890 | -9/Materials | Discovered new exit (range 12) 3024 | -9/Materials | Identified exit to Mines 3136 | -9/Materials | Entered Mines 3188 | -9/Mines | A weapon hastily lodged in a ceiling crevice suddenly fell to the ground 3249 | -9/Mines | Discovered new exit (range 7) 3275 | -9/Mines | Assembled infested the area 3292 | -9/Mines | Core integrity fell below 50% 3311 | -9/Mines | Discovered new exit (range 16) 3344 | -9/Mines | Destroyed 9 combat bots 3671 | -9/Mines | Learned location of Storage (-8) 4224 | -9/Mines | Deemed a non-threat by the Exiles lab entrance 4225 | -9/Mines | Discovered new exit (range 5) 4231 | -9/Mines | Entered Exiles 4253 | -9/Exiles | Discovered new exit (range 15) 4277 | -9/Exiles | Met 8R-AWN 4298 | -9/Exiles | Met EX-HEX 4343 | -9/Exiles | Met EX-BIN 4363 | -9/Exiles | Met EX-DEC 4419 | -9/Exiles | Aligned with FarCom system 4420 | -9/Exiles | Given EX-Vault access code 4455 | -9/Exiles | Opened EX-Vault 4464 | -9/Exiles | Found Latent Energy Streamer 4499 | -9/Exiles | Warned to stay clear of 0b10 Research branches 4626 | -9/Exiles | Discovered new exit (range 10) 4718 | -9/Exiles | Left Exiles lab with Latent Energy Streamer 4718 | -9/Exiles | Entered Mines 4836 | -8/Mines | Discovered new exit (range 11) 5253 | -8/Mines | Entered Materials 5253 | -8/Materials | Evolved 2 slots: Propulsion x1, Utility x1 5422 | -8/Materials | Garrison activated, responded to threat 5470 | -8/Materials | Lost 3 parts (1p1n1u) 5549 | -8/Materials | Lost 4 parts (2n1u1w) 5613 | -8/Materials | Central database locked down 5648 | -8/Materials | Build established: Skirmisher 6098 | -8/Materials | Build established: Scavenger-Mutant 6151 | -8/Materials | Discovered new exit (range 16) 6411 | -8/Materials | Entered Factory 6411 | -7/Factory | Evolved 2 slots: Utility x2 6543 | -7/Factory | Identified exit to DSF 6545 | -7/Factory | Entered DSF 6635 | -7/DSF | Additional patrols routed to DSF 6746 | -7/DSF | Sterilization system engaged 6765 | -7/DSF | Destroyed 9 combat bots 6766 | -7/DSF | Ambient heat levels rising (+10) 6774 | -7/DSF | Lost 8 parts (4n2u2w) 6781 | -7/DSF | Ambient heat levels rising (+10) 6796 | -7/DSF | Ambient heat levels rising (+10) 6811 | -7/DSF | Ambient heat levels rising (+10) 6826 | -7/DSF | Ambient heat levels rising (+10) 6834 | -7/DSF | System corruption reached 10% 6841 | -7/DSF | Ambient heat levels rising (+10) 6856 | -7/DSF | Ambient heat levels rising (+10) 6871 | -7/DSF | Ambient heat levels rising (+10) 6880 | -7/DSF | Discovered new exit (range 15) 6886 | -7/DSF | Ambient heat levels rising (+10) 6901 | -7/DSF | Ambient heat levels rising (+10) 6902 | -7/DSF | Core integrity fell below 50% 6916 | -7/DSF | Ambient heat levels rising (+10) 6931 | -7/DSF | Ambient heat levels rising (+10) 6946 | -7/DSF | Ambient heat levels rising (+10) 6950 | -7/DSF | Core integrity fell below 20% 6961 | -7/DSF | Ambient heat levels rising (+10) 6976 | -7/DSF | Ambient heat levels rising (+10) 6978 | -7/DSF | Core destroyed Last Messages --------------- 06946_ Overheating: Matter decay (-3). 06946_ ALERT: Ambient heat levels +10. 06947_ Overheating: Broken Adv. Heat Sink damaged (-1). 06947_ Overheating: Huge Storage Unit damaged (-7). 06947_ Overheating: Broken Imp. Treads damaged (-1). 06948_ Imp. Ion Engine broken. 06948_ Overheating: Short circuit. 06949_ Overheating: Matter decay (-3). 06950_ Overheating: Core damaged (-126). 06955_ Overheating: Matter decay (-3). 06961_ ALERT: Ambient heat levels +10. 06969_ ZMZPDI00B